fUSD/lending_fUSD_20241227
["ID","MTS","AMOUNT","RATE_DAILY","PERIOD"]
[346794642,1735293032980,-500.0,0.00010995,2]
[346794643,1735293032990,-203.80001819,0.00010996,2]
[346794644,1735293033000,-335.99998171,0.00010996,2]
[346794645,1735293033011,-288.10001829,0.00010996,2]
[346794646,1735293033021,-278.79499847,0.00010996,2]
[346794647,1735293033033,-838.42500153,0.00010996,2]
[346794648,1735293033043,-500.0,0.00010996,2]
[346794649,1735293033053,-500.0,0.00010996,2]
[346794650,1735293033062,-1520.37499847,0.00010996,2]
[346794651,1735293033074,-80.53500153,0.00010996,2]
[346794652,1735293033084,-979.46499097,0.00010996,2]
[346794653,1735293033096,-618.53500903,0.00010996,2]
[346794654,1735293033105,-507.11499122,0.00010996,2]
[346794656,1735293038029,-500.0,0.00010995,2]
[346794657,1735293038038,-1102.11499954,0.00010996,2]
[346794658,1735293038050,-27.38000924,0.00010996,2]
[346794659,1735293038059,-494.36532274,0.00010996,2]
[346794660,1735293038070,-5.63467726,0.00010996,2]
[346794661,1735293038080,-862.97,0.00010996,2]
[346794662,1735293038089,-22.81515855,0.00010996,2]
[346794663,1735293038100,-525.02484145,0.00010996,2]
[346794664,1735293038110,-788.42,0.00010996,2]
[346794665,1735293038119,-500.0,0.00010996,2]
[346794666,1735293038128,-158.89515855,0.00010996,2]
[346794667,1735293038140,-341.10484145,0.00010996,2]
[346794668,1735293038150,-358.43515855,0.00010996,2]
[346794669,1735293038169,-141.56484145,0.00010996,2]
[346794670,1735293038178,-1394.49,0.00010996,2]
[346794671,1735293038188,-839.16,0.00010996,2]
[346794672,1735293038197,-500.0,0.00010996,2]
[346794673,1735293038207,-500.0,0.00010996,2]
[346794674,1735293038217,-739.77,0.00010996,2]
[346794675,1735293038226,-500.0,0.00010996,2]
[346794676,1735293038236,-1927.9,0.00010996,2]
[346794677,1735293038245,-1368.02,0.00010996,2]
[346794678,1735293038256,-500.0,0.00010996,2]
[346794679,1735293038266,-1924.92,0.00010996,2]
[346794680,1735293038275,-1156.07,0.00010996,2]
[346794681,1735293038285,-500.0,0.00010996,2]
[346794682,1735293038294,-1852.2,0.00010996,2]
[346794683,1735293038303,-608.23,0.00010996,2]
[346794684,1735293038313,-577.35,0.00010996,2]
[346794685,1735293038322,-914.81,0.00010996,2]
[346794686,1735293038332,-500.0,0.00010996,2]
[346794687,1735293038343,-781.88,0.00010996,2]
[346794688,1735293038353,-505.86,0.00010996,2]
[346794689,1735293038361,-611.79,0.00010996,2]
[346794690,1735293038371,-500.0,0.00010996,2]
[346794691,1735293038381,-687.6,0.00010996,2]
[346794692,1735293038391,-500.0,0.00010996,2]
[346794693,1735293038401,-949.04,0.00010996,2]
[346794694,1735293038412,-1246.73,0.00010996,2]
[346794696,1735293038422,-2406.13,0.00010996,2]
[346794698,1735293038431,-1455.4,0.00010996,2]
[346794700,1735293038441,-500.0,0.00010996,2]
[346794702,1735293038450,-1042.57,0.00010996,2]
[346794704,1735293038460,-1398.3,0.00010996,2]
[346794706,1735293038469,-500.0,0.00010996,2]
[346794708,1735293038479,-500.0,0.00010996,2]
[346794710,1735293038488,-2271.92,0.00010996,2]
[346794712,1735293038497,-500.0,0.00010996,2]
[346794714,1735293038507,-980.97,0.00010996,2]
[346794716,1735293038517,-1831.9,0.00010996,2]
[346794718,1735293038526,-846.54,0.00010996,2]
[346794720,1735293038536,-500.0,0.00010996,2]
[346794722,1735293038546,-932.17,0.00010996,2]
[346794724,1735293038555,-500.0,0.00010996,2]
[346794726,1735293038564,-689.86,0.00010996,2]
[346794728,1735293038573,-528.41,0.00010996,2]
[346794730,1735293038583,-500.0,0.00010996,2]
[346794732,1735293038592,-2855.9,0.00010996,2]
[346794734,1735293038601,-835.36,0.00010996,2]
[346794736,1735293038611,-500.0,0.00010996,2]
[346794738,1735293038621,-755.81,0.00010996,2]
[346794740,1735293038630,-1301.7,0.00010996,2]
[346794742,1735293038639,-500.0,0.00010996,2]
[346794744,1735293038649,-500.0,0.00010996,2]
[346794746,1735293038658,-500.0,0.00010996,2]
[346794748,1735293038668,-500.0,0.00010996,2]
[346794750,1735293038677,-1794.17,0.00010996,2]
[346794752,1735293038687,-500.0,0.00010996,2]
[346794754,1735293038696,-2237.63,0.00010996,2]
[346794756,1735293038705,-532.53,0.00010996,2]
[346794758,1735293038715,-500.0,0.00010996,2]
[346794760,1735293038723,-500.0,0.00010996,2]
[346794762,1735293038733,-763.01,0.00010996,2]
[346794764,1735293038742,-500.0,0.00010996,2]
[346794766,1735293038754,-756.57,0.00010996,2]
[346794768,1735293038763,-500.0,0.00010996,2]
[346794770,1735293038772,-500.0,0.00010996,2]
[346794772,1735293038781,-500.0,0.00010996,2]
[346794774,1735293038790,-977.27,0.00010996,2]
[346794776,1735293038799,-500.0,0.00010996,2]
[346794778,1735293038808,-754.46,0.00010996,2]
[346794780,1735293038817,-500.0,0.00010996,2]
[346794782,1735293038827,-1127.62,0.00010996,2]
[346794784,1735293038836,-500.0,0.00010996,2]
[346794786,1735293038845,-500.0,0.00010996,2]
[346794787,1735293038854,-500.0,0.00010996,2]
[346794789,1735293038863,-4479.22,0.00010996,2]
[346794791,1735293038872,-500.0,0.00010996,2]
[346794793,1735293038881,-500.0,0.00010996,2]
[346794795,1735293038891,-956.2,0.00010996,2]
[346794797,1735293038901,-500.0,0.00010996,2]
[346794799,1735293038910,-1369.34,0.00010996,2]
[346794801,1735293038919,-2780.98,0.00010996,2]
[346794803,1735293038928,-812.77,0.00010996,2]
[346794805,1735293038937,-184.45957284,0.00010996,2]
[346794807,1735293038947,-1182.7,0.00010996,2]
[346794809,1735293038957,-500.0,0.00010996,2]
[346794811,1735293038966,-500.0,0.00010996,2]
[346794814,1735293038976,-546.02,0.00010996,2]
[346794815,1735293038985,-7289.28,0.00010996,2]
[346794817,1735293038994,-1479.06,0.00010996,2]
[346794820,1735293039005,-667.34,0.00010996,2]
[346794822,1735293039014,-3114.78916839,0.00010996,2]
[346794824,1735293039025,-47.44083161,0.00010996,2]
[346794826,1735293039032,-1100.87,0.00010996,2]
[346794828,1735293039040,-922.74,0.00010996,2]
[346794829,1735293039047,-901.16,0.00010996,2]
[346794831,1735293039054,-730.86,0.00010996,2]
[346794833,1735293039061,-500.0,0.00010996,2]
[346794835,1735293039069,-6008.87,0.00010996,2]
[346794837,1735293039077,-500.0,0.00010996,2]
[346794839,1735293039084,-564.4,0.00010996,2]
[346794841,1735293039093,-500.0,0.00010996,2]
[346794843,1735293039102,-763.8,0.00010996,2]
[346794845,1735293039112,-621.71,0.00010996,2]
[346794847,1735293039122,-500.0,0.00010996,2]
[346794849,1735293039131,-1119.26,0.00010996,2]
[346794851,1735293039140,-500.0,0.00010996,2]
[346794853,1735293039149,-502.01801394,0.00010996,2]
[346794855,1735293039158,-2544.95,0.00010996,2]
[346794857,1735293039168,-4103.27,0.00010996,2]
[346794859,1735293039177,-500.0,0.00010996,2]
[346794861,1735293039187,-493.70178101,0.00010996,2]
[346794863,1735293039196,-1998.15,0.00010996,2]
[346794865,1735293039206,-500.0,0.00010996,2]
[346794867,1735293039215,-500.0,0.00010996,2]
[346794869,1735293039224,-2084.5,0.00010996,2]
[346794871,1735293039235,-500.0,0.00010996,2]
[346794873,1735293039245,-500.0,0.00010996,2]
[346794875,1735293039255,-500.0,0.00010996,2]
[346794877,1735293039265,-500.0,0.00010996,2]
[346794879,1735293039274,-500.0,0.00010996,2]
[346794881,1735293039283,-500.0,0.00010996,2]
[346794883,1735293039293,-1369.01,0.00010996,2]
[346794885,1735293039302,-4394.18,0.00010996,2]
[346794887,1735293039311,-500.0,0.00010996,2]
[346794889,1735293039321,-500.0,0.00010996,2]
[346794892,1735293039331,-500.0,0.00010996,2]
[346794894,1735293039345,-500.0,0.00010996,2]
[346794896,1735293039355,-1527.41,0.00010996,2]
[346794898,1735293039365,-1001.71,0.00010996,2]
[346794900,1735293039376,-500.0,0.00010996,2]
[346794902,1735293039386,-500.0,0.00010996,2]
[346794904,1735293039396,-1677.97,0.00010996,2]
[346794906,1735293039405,-939.23,0.00010996,2]
[346794908,1735293039415,-2349.40655359,0.00010996,2]
[346794912,1735293039448,-2247.00223663,0.00010996,2]
[346794914,1735293039460,-1786.23120978,0.00010996,2]
[346794916,1735293039469,-500.0,0.00010996,2]
[346794918,1735293039479,-500.0,0.00010996,2]
[346794919,1735293039488,-500.0,0.00010996,2]
[346794920,1735293039498,-584.48,0.00010996,2]
[346794922,1735293039509,-1509.99,0.00010996,2]
[346794924,1735293039519,-500.0,0.00010996,2]
[346794926,1735293039529,-3055.05,0.00010996,2]
[346794928,1735293039539,-500.0,0.00010996,2]
[346794930,1735293039548,-500.0,0.00010996,2]
[346794932,1735293039558,-744.3,0.00010996,2]
[346794935,1735293039567,-2403.44,0.00010996,2]
[346794937,1735293039577,-10198.22,0.00010996,2]
[346794939,1735293039586,-2009.38,0.00010996,2]
[346794940,1735293039595,-500.0,0.00010996,2]
[346794942,1735293039605,-500.0,0.00010996,2]
[346794944,1735293039615,-6999.51,0.00010996,2]
[346794947,1735293039624,-2618.305131,0.00010996,2]
[346794949,1735293039637,-157.91262,0.00010996,2]
[346794950,1735293039646,-154.288304,0.00010996,2]
[346794953,1735293039656,-500.0,0.00010996,2]
[346794954,1735293039665,-2950.53,0.00010996,2]
[346794956,1735293039674,-913.36,0.00010996,2]
[346794958,1735293039684,-500.0,0.00010996,2]
[346794961,1735293039693,-1358.65,0.00010996,2]
[346794962,1735293039703,-2612.69257,0.00010996,2]
[346794965,1735293039712,-500.0,0.00010996,2]
[346794967,1735293039722,-1174.5,0.00010996,2]
[346794969,1735293039732,-979.0,0.00010996,2]
[346794971,1735293039741,-500.0,0.00010996,2]
[346794972,1735293039751,-500.0,0.00010996,2]
[346794973,1735293039760,-500.0,0.00010996,2]
[346794974,1735293039770,-1402.46,0.00010996,2]
[346794975,1735293039779,-21064.69,0.00010996,2]
[346794976,1735293039789,-1658.28,0.00010996,2]
[346794977,1735293039798,-550.1,0.00010996,2]
[346794978,1735293039807,-10278.11,0.00010996,2]
[346794979,1735293039817,-500.0,0.00010996,2]
[346794980,1735293039826,-1884.93,0.00010996,2]
[346794981,1735293039835,-4394.58,0.00010996,2]
[346794982,1735293039845,-1017.99,0.00010996,2]
[346794983,1735293039855,-500.0,0.00010996,2]
[346794984,1735293039864,-1131.84,0.00010996,2]
[346794985,1735293039874,-10933.11,0.00010996,2]
[346794986,1735293039883,-500.0,0.00010996,2]
[346794987,1735293039893,-500.0,0.00010996,2]
[346794988,1735293039902,-543.01,0.00010996,2]
[346794989,1735293039911,-500.0,0.00010996,2]
[346794990,1735293039921,-500.0,0.00010996,2]
[346794991,1735293039930,-500.0,0.00010996,2]
[346794992,1735293039939,-500.0,0.00010996,2]
[346794993,1735293039949,-500.0,0.00010996,2]
[346794994,1735293039958,-4087.54,0.00010996,2]
[346794995,1735293039968,-500.0,0.00010996,2]
[346794996,1735293039977,-1445.06,0.00010996,2]
[346794997,1735293039987,-2450.73,0.00010996,2]
[346794998,1735293039996,-500.0,0.00010996,2]
[346794999,1735293040008,-500.0,0.00010996,2]
[346795000,1735293040017,-3605.62,0.00010996,2]
[346795002,1735293040027,-500.0,0.00010996,2]
[346795003,1735293040036,-500.0,0.00010996,2]
[346795004,1735293040046,-249.87720765,0.00010996,2]
[346795005,1735293040055,-500.0,0.00010996,2]
[346795006,1735293040064,-500.0,0.00010996,2]
[346795007,1735293040073,-500.0,0.00010996,2]
[346795008,1735293040082,-500.0,0.00010996,2]
[346795009,1735293040092,-5396.64,0.00010996,2]
[346795010,1735293040101,-2104.81,0.00010996,2]
[346795011,1735293040110,-500.0,0.00010996,2]
[346795012,1735293040119,-3299.12,0.00010996,2]
[346795014,1735293040129,-500.0,0.00010996,2]
[346795015,1735293040138,-1040.72160029,0.00010996,3]
[346795016,1735293040147,-500.0,0.00010996,2]
[346795017,1735293040156,-3197.24,0.00010996,2]
[346795018,1735293040165,-500.0,0.00010996,2]
[346795019,1735293040175,-500.0,0.00010996,2]
[346795020,1735293040184,-1735.93,0.00010996,2]
[346795021,1735293040193,-1071.99,0.00010996,2]
[346795022,1735293040202,-500.0,0.00010996,2]
[346795023,1735293040211,-500.0,0.00010996,2]
[346795024,1735293040220,-500.0,0.00010996,2]
[346795025,1735293040229,-521.9,0.00010996,2]
[346795026,1735293040237,-500.0,0.00010996,2]
[346795027,1735293040246,-1481.0,0.00010996,2]
[346795028,1735293040256,-500.0,0.00010996,2]
[346795029,1735293040265,-532.44,0.00010996,2]
[346795030,1735293040274,-500.0,0.00010996,2]
[346795031,1735293040283,-6494.52,0.00010996,2]
[346795032,1735293040292,-638.88,0.00010996,2]
[346795033,1735293040301,-875.31,0.00010996,2]
[346795034,1735293040310,-1795.07,0.00010996,2]
[346795035,1735293040319,-913.15,0.00010996,2]
[346795036,1735293040328,-500.0,0.00010996,2]
[346795037,1735293040340,-580.52271585,0.00010996,2]
[346795038,1735293040350,-500.0,0.00010996,2]
[346795039,1735293040359,-500.0,0.00010996,2]
[346795040,1735293040368,-500.0,0.00010996,2]
[346795041,1735293040377,-500.0,0.00010996,2]
[346795042,1735293040386,-1787.86,0.00010996,2]
[346795043,1735293040395,-500.0,0.00010996,2]
[346795044,1735293040404,-500.0,0.00010997,2]
[346795045,1735293040414,-500.0,0.00010997,2]
[346795046,1735293040423,-500.0,0.00010997,2]
[346795047,1735293040432,-500.0,0.00010997,2]
[346795048,1735293040441,-500.0,0.00010997,2]
[346795049,1735293040451,-500.0,0.00010997,2]
[346795050,1735293040460,-899.3,0.00010997,2]
[346795051,1735293040469,-500.0,0.00010997,2]
[346795052,1735293040479,-500.0,0.00010997,2]
[346795053,1735293040488,-561.72,0.00010997,2]
[346795054,1735293040497,-525.97,0.00010997,2]
[346795055,1735293040508,-500.0,0.00010997,2]
[346795056,1735293040517,-500.0,0.00010997,2]
[346795057,1735293040527,-500.0,0.00010997,2]
[346795058,1735293040537,-719.51,0.00010997,2]
[346795059,1735293040547,-500.0,0.00010997,2]
[346795060,1735293040556,-500.0,0.00010997,2]
[346795061,1735293040565,-500.0,0.00010997,2]
[346795062,1735293040574,-500.0,0.00010997,2]
[346795063,1735293040583,-500.0,0.00010997,2]
[346795064,1735293040593,-500.0,0.00010997,2]
[346795065,1735293040602,-657.84,0.00010997,2]
[346795066,1735293040611,-500.0,0.00010997,2]
[346795067,1735293040620,-500.0,0.00010997,2]
[346795068,1735293040850,-500.0,0.00010997,2]
[346795069,1735293040867,-500.0,0.00010997,2]
[346795070,1735293040876,-500.0,0.00010997,2]
[346795071,1735293040886,-500.0,0.00010997,2]
[346795072,1735293040895,-500.0,0.00010997,2]
[346795073,1735293040905,-500.0,0.00010997,2]
[346795074,1735293040914,-500.0,0.00010997,2]
[346795075,1735293040924,-500.0,0.00010997,2]
[346795076,1735293040934,-500.0,0.00010997,2]
[346795077,1735293040943,-500.0,0.00010997,2]
[346795078,1735293040952,-500.0,0.00010997,2]
[346795079,1735293040962,-500.0,0.00010997,2]
[346795080,1735293040971,-500.0,0.00010997,2]
[346795081,1735293040980,-500.0,0.00010997,2]
[346795082,1735293040990,-500.0,0.00010997,2]
[346795083,1735293040999,-500.0,0.00010997,2]
[346795084,1735293041010,-500.0,0.00010997,2]
[346795085,1735293041019,-500.0,0.00010997,2]
[346795086,1735293041028,-500.0,0.00010997,2]
[346795087,1735293041038,-388.59185562,0.00010997,2]
[346795088,1735293041047,-500.0,0.00010997,2]
[346795089,1735293041056,-624.08,0.00010997,2]
[346795090,1735293041065,-500.0,0.00010997,2]
[346795091,1735293041075,-802.63,0.00010997,2]
[346795092,1735293041084,-500.0,0.00010997,2]
[346795093,1735293041093,-500.0,0.00010997,2]
[346795094,1735293041102,-500.0,0.00010997,2]
[346795095,1735293041111,-500.0,0.00010997,2]
[346795096,1735293041119,-158.44616163,0.00010997,2]
[346795097,1735293041139,-341.55383837,0.00010997,2]
[346795098,1735293041148,-513.59,0.00010997,2]
[346795099,1735293041157,-500.0,0.00010997,2]
[346795100,1735293041166,-99.36038771,0.00010997,2]
[346795101,1735293041189,-400.63961229,0.00010997,2]
[346795102,1735293041198,-91.66038771,0.00010997,2]
[346795103,1735293041215,-408.33961229,0.00010997,2]
[346795104,1735293041225,-95.25838771,0.00010997,2]
[346795105,1735293041237,-404.74161229,0.00010997,2]
[346795106,1735293041246,-138.17838771,0.00010997,2]
[346795107,1735293041936,-500.0,0.00010995,2]
[346795108,1735293041945,-500.0,0.00010996,2]
[346795109,1735293041955,-500.0,0.00010996,2]
[346795110,1735293041967,-361.82161229,0.00010997,2]
[346795111,1735293041976,-609.28,0.00010997,2]
[346795112,1735293041985,-500.0,0.00010997,2]
[346795113,1735293041994,-500.0,0.00010997,2]
[346795114,1735293042006,-500.0,0.00010997,2]
[346795115,1735293042015,-500.0,0.00010997,2]
[346795116,1735293042024,-500.0,0.00010997,2]
[346795117,1735293042033,-800.29,0.00010997,2]
[346795118,1735293042043,-500.0,0.00010997,2]
[346795119,1735293042052,-500.0,0.00010997,2]
[346795120,1735293042061,-545.57651097,0.00010997,2]
[346795121,1735293042071,-500.0,0.00010997,2]
[346795122,1735293042080,-500.0,0.00010997,2]
[346795123,1735293042089,-500.0,0.00010997,2]
[346795124,1735293042098,-500.0,0.00010997,2]
[346795125,1735293042107,-500.0,0.00010997,2]
[346795126,1735293042116,-500.0,0.00010997,2]
[346795127,1735293042125,-500.0,0.00010997,2]
[346795128,1735293042135,-500.0,0.00010997,2]
[346795129,1735293042144,-500.0,0.00010997,2]
[346795130,1735293042153,-500.0,0.00010997,2]
[346795131,1735293042163,-500.0,0.00010997,2]
[346795132,1735293042172,-500.0,0.00010997,2]
[346795133,1735293042182,-500.0,0.00010997,2]
[346795134,1735293042191,-500.0,0.00010997,2]
[346795135,1735293042200,-500.0,0.00010997,2]
[346795136,1735293042209,-166.75383285,0.00010997,2]
[346795137,1735293042218,-500.0,0.00010997,2]
[346795138,1735293042227,-500.0,0.00010997,2]
[346795139,1735293042236,-500.0,0.00010997,2]
[346795140,1735293042245,-502.15929834,0.00010997,2]
[346795141,1735293042256,-500.0,0.00010997,2]
[346795142,1735293042265,-500.0,0.00010997,2]
[346795143,1735293042275,-500.0,0.00010997,2]
[346795144,1735293042284,-500.0,0.00010997,2]
[346795145,1735293042293,-913.21,0.00010997,2]
[346795146,1735293042302,-500.0,0.00010997,2]
[346795147,1735293042311,-500.0,0.00010997,2]
[346795148,1735293042321,-500.0,0.00010997,2]
[346795149,1735293042330,-500.0,0.00010997,2]
[346795150,1735293042342,-500.0,0.00010997,2]
[346795151,1735293042351,-646.43,0.00010997,2]
[346795152,1735293042360,-500.0,0.00010997,2]
[346795153,1735293042369,-500.0,0.00010997,2]
[346795154,1735293042379,-353.1926349,0.00010997,2]
[346795155,1735293042388,-500.0,0.00010997,2]
[346795156,1735293042396,-500.0,0.00010997,2]
[346795157,1735293042406,-500.0,0.00010997,2]
[346795158,1735293042415,-500.0,0.00010997,2]
[346795159,1735293042425,-503.18,0.00010997,2]
[346795160,1735293042434,-500.0,0.00010997,2]
[346795161,1735293042443,-500.0,0.00010997,2]
[346795162,1735293042452,-517.53,0.00010997,2]
[346795163,1735293042461,-500.0,0.00010997,2]
[346795164,1735293042471,-500.0,0.00010997,2]
[346795165,1735293042480,-500.0,0.00010997,2]
[346795166,1735293042489,-500.0,0.00010997,2]
[346795167,1735293042499,-500.0,0.00010997,2]
[346795168,1735293042512,-500.0,0.00010997,2]
[346795169,1735293042521,-219.5960865,0.00010997,2]
[346795170,1735293042531,-500.0,0.00010997,2]
[346795171,1735293042540,-500.0,0.00010997,2]
[346795172,1735293042549,-500.0,0.00010997,2]
[346795173,1735293042558,-800.89,0.00010997,2]
[346795174,1735293042567,-500.0,0.00010997,2]
[346795175,1735293042577,-500.0,0.00010997,2]
[346795176,1735293042586,-694.47,0.00010997,2]
[346795177,1735293042595,-153.40508213,0.00010997,2]
[346795178,1735293042605,-500.0,0.00010997,2]
[346795179,1735293042615,-586.86498796,0.00010997,2]
[346795180,1735293042623,-500.0,0.00010997,2]
[346795181,1735293042632,-500.0,0.00010997,2]
[346795182,1735293042642,-500.0,0.00010997,2]
[346795183,1735293042651,-500.0,0.00010997,2]
[346795184,1735293042661,-500.0,0.00010997,2]
[346795185,1735293042670,-500.0,0.00010997,2]
[346795186,1735293042679,-500.0,0.00010997,2]
[346795187,1735293042688,-500.0,0.00010997,2]
[346795188,1735293042698,-500.0,0.00010997,2]
[346795189,1735293042707,-500.0,0.00010997,2]
[346795190,1735293042716,-500.0,0.00010997,2]
[346795191,1735293042726,-500.0,0.00010997,2]
[346795192,1735293042736,-500.0,0.00010997,2]
[346795193,1735293042746,-500.0,0.00010997,2]
[346795194,1735293042755,-500.0,0.00010997,2]
[346795195,1735293042765,-500.0,0.00010997,2]
[346795196,1735293042774,-500.0,0.00010997,2]
[346795197,1735293042783,-500.0,0.00010997,2]
[346795198,1735293042792,-644.22,0.00010997,2]
[346795199,1735293042801,-500.0,0.00010997,2]
[346795200,1735293042811,-500.0,0.00010997,2]
[346795201,1735293042820,-500.0,0.00010997,2]
[346795202,1735293042829,-500.0,0.00010997,2]
[346795203,1735293042839,-500.0,0.00010997,2]
[346795204,1735293042848,-500.0,0.00010997,2]
[346795205,1735293042857,-913.75,0.00010997,2]
[346795206,1735293042868,-500.0,0.00010997,2]
[346795208,1735293042878,-500.0,0.00010997,2]
[346795210,1735293042887,-500.0,0.00010997,2]
[346795211,1735293042896,-500.0,0.00010997,2]
[346795213,1735293042906,-683.62,0.00010997,2]
[346795215,1735293042915,-528.52295594,0.00010997,2]
[346795216,1735293042924,-500.0,0.00010997,2]
[346795217,1735293042933,-500.0,0.00010997,2]
[346795218,1735293042943,-500.0,0.00010997,2]
[346795219,1735293042952,-1398.15,0.00010997,2]
[346795220,1735293042961,-500.0,0.00010997,2]
[346795221,1735293042970,-500.0,0.00010997,2]
[346795222,1735293042980,-915.14,0.00010997,2]
[346795223,1735293042990,-563.84,0.00010997,2]
[346795224,1735293042999,-500.0,0.00010997,2]
[346795225,1735293043011,-500.0,0.00010997,2]
[346795226,1735293043020,-500.0,0.00010997,2]
[346795227,1735293043029,-500.0,0.00010997,2]
[346795228,1735293043038,-500.0,0.00010997,2]
[346795230,1735293043048,-500.0,0.00010997,2]
[346795231,1735293043057,-519.83284792,0.00010997,2]
[346795232,1735293043067,-500.0,0.00010997,2]
[346795233,1735293043076,-425.84976789,0.00010997,2]
[346795234,1735293043086,-500.0,0.00010997,2]
[346795235,1735293043095,-500.0,0.00010997,2]
[346795236,1735293043104,-500.0,0.00010997,2]
[346795237,1735293043114,-500.0,0.00010997,2]
[346795238,1735293043123,-929.99,0.00010997,2]
[346795239,1735293043132,-500.0,0.00010997,2]
[346795240,1735293043141,-1496.61,0.00010997,2]
[346795241,1735293043151,-500.0,0.00010997,2]
[346795242,1735293043160,-500.0,0.00010997,2]
[346795243,1735293043170,-500.0,0.00010997,2]
[346795244,1735293043179,-500.0,0.00010997,2]
[346795245,1735293043188,-500.0,0.00010997,2]
[346795246,1735293043197,-605.28,0.00010997,2]
[346795247,1735293043206,-1403.26,0.00010997,2]
[346795248,1735293043215,-309.83017488,0.00010997,2]
[346795249,1735293043224,-572.99,0.00010997,2]
[346795250,1735293043233,-855.53,0.00010997,2]
[346795251,1735293043243,-500.0,0.00010997,2]
[346795252,1735293043252,-894.71,0.00010997,2]
[346795253,1735293043263,-500.0,0.00010997,2]
[346795254,1735293043272,-574.06,0.00010997,2]
[346795255,1735293043281,-500.0,0.00010997,2]
[346795256,1735293043290,-1481.52,0.00010997,2]
[346795257,1735293043299,-684.29,0.00010997,2]
[346795258,1735293043309,-500.0,0.00010997,2]
[346795259,1735293043317,-500.0,0.00010997,2]
[346795260,1735293043327,-780.76,0.00010997,2]
[346795261,1735293043337,-526.32,0.00010997,2]
[346795262,1735293043347,-500.0,0.00010997,2]
[346795263,1735293043356,-500.0,0.00010997,2]
[346795264,1735293043365,-748.76,0.00010997,2]
[346795265,1735293043374,-539.88,0.00010997,2]
[346795266,1735293043384,-500.0,0.00010997,2]
[346795267,1735293043394,-500.0,0.00010997,2]
[346795268,1735293043403,-500.0,0.00010997,2]
[346795269,1735293043413,-500.0,0.00010997,2]
[346795270,1735293043422,-500.0,0.00010997,2]
[346795271,1735293043432,-500.0,0.00010997,2]
[346795272,1735293043441,-500.0,0.00010997,2]
[346795273,1735293043450,-500.0,0.00010997,2]
[346795274,1735293043459,-500.0,0.00010997,2]
[346795275,1735293043468,-795.53,0.00010997,2]
[346795276,1735293043477,-500.0,0.00010997,2]
[346795277,1735293043487,-500.0,0.00010997,2]
[346795278,1735293043495,-500.0,0.00010997,2]
[346795279,1735293043505,-500.0,0.00010997,2]
[346795280,1735293043515,-500.0,0.00010997,2]
[346795281,1735293043524,-500.0,0.00010997,2]
[346795282,1735293043533,-500.0,0.00010997,2]
[346795283,1735293043543,-500.0,0.00010997,2]
[346795284,1735293043552,-500.0,0.00010997,2]
[346795285,1735293043562,-509.36434445,0.00010997,2]
[346795286,1735293043572,-500.0,0.00010997,2]
[346795287,1735293043581,-500.0,0.00010997,2]
[346795288,1735293043590,-1062.03,0.00010997,2]